fUSD/lending_fUSD_20260228
["ID","MTS","AMOUNT","RATE_DAILY","PERIOD"]
[406919736,1772275848608,-151.0,0.00041096,2]
[406919738,1772275848617,-151.0,0.00041096,2]
[406919740,1772275848629,-169.672958,0.00041096,120]
[406919742,1772275848639,-151.0,0.00041096,120]
[406919744,1772275848648,-174.223406,0.00041096,120]
[406919746,1772275848657,-151.23364,0.00041096,120]
[406919748,1772275848667,-151.0,0.00041096,120]
[406919749,1772275848676,-199.864847,0.00041096,120]
[406919751,1772275848685,-151.0,0.00041096,120]
[406919753,1772275848695,-151.0,0.00041096,120]
[406919756,1772275848707,-173.828848,0.00041096,120]
[406919758,1772275848717,-173.828848,0.00041096,120]
[406919760,1772275848727,-173.828848,0.00041096,120]
[406919762,1772275848736,-173.828848,0.00041096,120]
[406919764,1772275848747,-173.670217,0.00041096,120]
[406919766,1772275848756,-151.0,0.00041096,120]
[406919768,1772275848766,-151.0,0.00041096,120]
[406919770,1772275848775,-171.759759,0.00041096,120]
[406919772,1772275848785,-151.0,0.00041096,120]
[406919774,1772275848795,-160.448669,0.00041096,120]
[406919776,1772275848804,-180.353393,0.00041096,120]
[406919777,1772275848812,-151.0,0.00041096,120]
[406919779,1772275848821,-151.0,0.00041096,120]
[406919781,1772275848830,-151.0,0.00041096,120]
[406919783,1772275848839,-154.219567,0.00041096,120]
[406919785,1772275848849,-252.343687,0.00041096,120]
[406919787,1772275848858,-151.0,0.00041096,120]
[406919789,1772275848867,-155.4467,0.00041096,120]
[406919791,1772275848878,-275.536021,0.00041096,120]
[406919794,1772275848887,-544.728675,0.00041096,15]
[406919796,1772275848896,-151.0,0.00041096,120]
[406919798,1772275848905,-544.728675,0.00041096,15]
[406919800,1772275848915,-151.0,0.00041096,120]
[406919802,1772275848924,-544.728675,0.00041096,15]
[406919804,1772275848932,-544.728675,0.00041096,15]
[406919806,1772275848941,-282.437129,0.00041096,120]
[406919808,1772275848950,-151.0,0.00041096,30]
[406919810,1772275848959,-151.0,0.00041096,120]
[406919812,1772275848968,-151.0,0.00041096,120]
[406919814,1772275848977,-173.231703,0.00041096,120]
[406919816,1772275848987,-242.974448,0.00041096,31]
[406919818,1772275848995,-218.452348,0.00041096,120]
[406919820,1772275849005,-288.242283,0.00041096,120]
[406919822,1772275849015,-151.0,0.00041096,120]
[406919824,1772275849024,-151.0,0.00041096,120]
[406919826,1772275849033,-151.0,0.00041096,120]
[406919828,1772275849042,-151.0,0.00041096,120]
[406919830,1772275849051,-166.016855,0.00041096,120]
[406919832,1772275849061,-151.0,0.00041096,120]
[406919834,1772275849070,-151.0,0.00041096,120]
[406919836,1772275849079,-151.0,0.00041096,120]
[406919838,1772275849089,-151.0,0.00041096,120]
[406919840,1772275849098,-151.56614,0.00041096,120]
[406919842,1772275849107,-151.0,0.00041096,120]
[406919844,1772275849116,-151.0,0.00041096,120]
[406919846,1772275849125,-151.0,0.00041096,120]
[406919848,1772275849135,-277.554105,0.00041096,120]
[406919850,1772275849144,-256.4539,0.00041096,120]
[406919852,1772275849153,-277.554105,0.00041096,120]
[406919854,1772275849162,-205.27477,0.00041096,120]
[406919856,1772275849171,-510.078649,0.00041096,14]
[406919858,1772275849180,-277.554105,0.00041096,120]
[406919860,1772275849189,-151.0,0.00041096,120]
[406919862,1772275849198,-205.27477,0.00041096,120]
[406919864,1772275849207,-510.078649,0.00041096,14]
[406919866,1772275849216,-277.554105,0.00041096,120]
[406919868,1772275849225,-205.27477,0.00041096,120]
[406919870,1772275849235,-510.078649,0.00041096,14]
[406919872,1772275849244,-510.078649,0.00041096,14]
[406919874,1772275849253,-205.27477,0.00041096,120]
[406919876,1772275849262,-210.922858,0.00041096,120]
[406919878,1772275849271,-179.350741,0.00041096,120]
[406919880,1772275849280,-170.479319,0.00041096,120]
[406919882,1772275849289,-183.582218,0.00041096,120]
[406919884,1772275849298,-151.0,0.00041096,120]
[406919886,1772275849307,-151.0,0.00041096,120]
[406919888,1772275849316,-151.0,0.00041096,120]
[406919890,1772275849325,-158.430045,0.00041096,120]
[406919892,1772275849334,-208.627332,0.00041096,120]
[406919894,1772275849343,-151.0,0.00041096,120]
[406919896,1772275849352,-159.279173,0.00041096,120]
[406919898,1772275849361,-151.0,0.00041096,120]
[406919900,1772275849371,-151.0,0.00041096,90]
[406919902,1772275849381,-1182.6815,0.00041096,120]
[406919904,1772275849391,-151.0,0.00041096,90]
[406919906,1772275849400,-1182.6815,0.00041096,120]
[406919908,1772275849410,-354.201394,0.00041096,120]
[406919910,1772275849429,-277.849877,0.00041096,90]
[406919912,1772275849437,-1182.6815,0.00041096,120]
[406919914,1772275849449,-354.201394,0.00041096,120]
[406919916,1772275849459,-1182.6815,0.00041096,120]
[406919918,1772275849468,-354.201394,0.00041096,120]
[406919920,1772275849477,-354.201394,0.00041096,120]
[406919922,1772275849487,-151.0,0.00041096,120]
[406919924,1772275849495,-151.0,0.00041096,120]
[406919926,1772275849505,-151.0,0.00041096,120]
[406919928,1772275849514,-151.0,0.00041096,120]
[406919930,1772275849522,-151.0,0.00041096,120]
[406919932,1772275849531,-151.0,0.00041096,120]
[406919934,1772275849540,-151.0,0.00041096,120]
[406919936,1772275849549,-151.0,0.00041096,120]
[406919938,1772275849558,-161.699904,0.00041096,120]
[406919940,1772275849567,-167.83282,0.00041096,120]
[406919942,1772275849577,-152.783552,0.00041096,35]
[406919944,1772275849586,-173.175025,0.00041096,120]
[406919946,1772275849595,-151.0,0.00041096,31]
[406919948,1772275849603,-173.175025,0.00041096,120]
[406919950,1772275849613,-350.839574,0.00041096,120]
[406919952,1772275849622,-173.175025,0.00041096,120]
[406919954,1772275849633,-350.839574,0.00041096,120]
[406919956,1772275849642,-151.482489,0.00041096,120]
[406919958,1772275849651,-767.34,0.00041264,30]
[406919960,1772275849661,-1702.73695443,0.00041265,60]
[406919968,1772275849726,-173.175025,0.00041096,120]
[406919970,1772275849735,-165.640666,0.00041096,120]
[406919974,1772275849761,-185.198908,0.00041096,120]
[406919976,1772275849771,-87.13761932,0.00041096,120]
[406919992,1772275849913,-9.08793622,0.00012777,2]
[406919994,1772275849925,-709.0050374,0.00012777,2]
[406919996,1772275849934,-150.0,0.00021192,2]
[406919998,1772275849943,-150.0,0.00021192,2]
[406920000,1772275849952,-63.86238068,0.00041096,120]
[406920002,1772275849962,-151.0,0.00041096,120]
[406920004,1772275849971,-350.839574,0.00041096,120]
[406920006,1772275849979,-151.0,0.00041096,120]
[406920008,1772275849988,-281.431155,0.00041096,120]
[406920010,1772275849997,-14662.59640608,0.00041265,60]
[406920012,1772275850008,-106343.66663949,0.00041265,60]
[406920014,1772275850017,-155.671451,0.00041265,120]
[406920016,1772275850026,-151.000142,0.00041265,120]
[406920018,1772275850035,-151.0,0.00041265,14]
[406920020,1772275850045,-151.0,0.00041265,120]
[406920022,1772275850053,-151.0,0.00041265,120]
[406920024,1772275850062,-151.0,0.00041265,120]
[406920026,1772275850072,-151.0,0.00041265,120]
[406920028,1772275850080,-151.0,0.00041265,120]
[406920030,1772275850090,-151.0,0.00041265,120]
[406920032,1772275850099,-151.0,0.00041265,120]
[406920034,1772275850108,-151.0,0.00041265,30]
[406920036,1772275850117,-249.626333,0.00041265,120]
[406920037,1772275850127,-155.049886,0.00041265,30]
[406920040,1772275850136,-151.0,0.00041265,120]
[406920042,1772275850146,-151.0,0.00041265,120]
[406920044,1772275850156,-151.0,0.00041265,120]
[406920046,1772275850165,-151.0,0.00041265,120]
[406920048,1772275850175,-258.70326866,0.000415,120]
[406920050,1772275850185,-300.01156507,0.00041743,2]
[406920052,1772275850194,-300.01156507,0.00041743,2]
[406920054,1772275850203,-300.01156507,0.00041743,2]
[406920055,1772275850212,-398.56870567,0.00041743,2]
[406920057,1772275850221,-765.27,0.00041829,120]
[406920060,1772275850231,-765.27,0.00041829,120]
[406920061,1772275850240,-765.27,0.00041829,120]
[406920064,1772275850251,-765.27,0.00041829,120]
[406920065,1772275850260,-765.42,0.00041829,120]
[406920068,1772275850270,-500.0,0.0004189,10]
[406920069,1772275850280,-2239.94917975,0.00042,2]
[406920072,1772275850291,-161.0,0.00042288,90]
[406920074,1772275850301,-1157.34,0.000423,30]
[406920076,1772275850311,-574.45,0.000423,14]
[406920078,1772275850320,-8313.58349139,0.00042504,30]
[406920091,1772275850439,-899.1,0.00042546,120]
[406920093,1772275850449,-1000.0,0.00042579,30]
[406920095,1772275850459,-500.0,0.00042581,120]
[406920097,1772275850469,-483.13999169,0.00042581,120]
[406920099,1772275850479,-500.0,0.00042581,2]
[406920101,1772275850488,-122709.0,0.00042582,60]
[406920103,1772275850497,-151.0,0.00042582,120]
[406920105,1772275850507,-175.363891,0.00042582,120]
[406920106,1772275850518,-166.488913,0.00042582,120]
[406920108,1772275850527,-151.0,0.00042582,120]
[406920110,1772275850537,-151.0,0.00042582,120]
[406920112,1772275850547,-151.0,0.00042582,120]
[406920115,1772275850557,-201.167448,0.00042582,120]
[406920117,1772275850566,-151.0,0.00042582,120]
[406920118,1772275850576,-151.0,0.00042582,120]
[406920120,1772275850585,-151.0,0.00042582,120]
[406920122,1772275850595,-151.0,0.00042582,120]
[406920124,1772275850604,-295.037625,0.00042582,120]
[406920127,1772275850614,-151.0,0.00042582,120]
[406920129,1772275850623,-151.0,0.00042582,120]
[406920131,1772275850634,-151.0,0.00042582,120]
[406920132,1772275850644,-252.675593,0.00042582,120]
[406920135,1772275850653,-151.0,0.00042582,120]
[406920137,1772275850663,-151.0,0.00042582,120]
[406920139,1772275850672,-277.554105,0.00042582,120]
[406920141,1772275850683,-151.0,0.00042582,120]
[406920143,1772275850694,-277.554105,0.00042582,120]
[406920145,1772275850707,-205.27477,0.00042582,120]
[406920147,1772275850717,-510.078649,0.00042582,14]
[406920149,1772275850727,-277.554105,0.00042582,120]
[406920151,1772275850738,-223.122949,0.00042582,120]
[406920153,1772275850748,-205.27477,0.00042582,120]
[406920155,1772275850757,-510.078649,0.00042582,14]
[406920157,1772275850767,-277.554105,0.00042582,120]
[406920159,1772275850777,-205.27477,0.00042582,120]
[406920161,1772275850787,-510.078649,0.00042582,14]
[406920163,1772275850797,-510.078649,0.00042582,14]
[406920165,1772275850807,-205.27477,0.00042582,120]
[406920167,1772275850816,-181.909619,0.00042582,120]
[406920169,1772275850825,-151.0,0.00042582,120]
[406920171,1772275850834,-156.811848,0.00042582,120]
[406920172,1772275850843,-151.0,0.00042582,120]
[406920174,1772275850852,-164.403234,0.00042582,120]
[406920177,1772275850861,-151.0,0.00042582,90]
[406920179,1772275850871,-1182.6815,0.00042582,120]
[406920181,1772275850880,-151.0,0.00042582,90]
[406920182,1772275850890,-1182.6815,0.00042582,120]
[406920184,1772275850900,-354.201394,0.00042582,120]
[406920187,1772275850910,-1182.6815,0.00042582,120]
[406920188,1772275850919,-354.201394,0.00042582,120]
[406920190,1772275850928,-1182.6815,0.00042582,120]
[406920191,1772275850938,-354.201394,0.00042582,120]
[406920192,1772275850947,-354.201394,0.00042582,120]
[406920193,1772275850957,-151.0,0.00042582,120]
[406920194,1772275850967,-151.0,0.00042582,120]
[406920195,1772275850976,-151.0,0.00042582,120]
[406920196,1772275850986,-151.0,0.00042582,120]
[406920197,1772275850996,-199.822189,0.00042582,120]
[406920198,1772275851006,-3190.786454,0.00042582,120]
[406920199,1772275851016,-3190.786454,0.00042582,120]
[406920200,1772275851026,-3190.786454,0.00042582,120]
[406920202,1772275851036,-3190.786454,0.00042582,120]
[406920203,1772275851045,-191.161477,0.00042582,120]
[406920205,1772275851055,-151.0,0.00042582,120]
[406920207,1772275851064,-151.0,0.00042582,120]
[406920209,1772275851074,-151.0,0.00042582,120]
[406920211,1772275851083,-151.0,0.00042582,120]
[406920213,1772275851092,-188.412998,0.00042582,120]
[406920215,1772275851101,-151.0,0.00042582,120]
[406920217,1772275851111,-173.175025,0.00042582,120]
[406920219,1772275851121,-151.0,0.00042582,31]
[406920221,1772275851130,-173.175025,0.00042582,120]
[406920223,1772275851140,-350.839574,0.00042582,120]
[406920225,1772275851150,-173.175025,0.00042582,120]
[406920227,1772275851159,-350.839574,0.00042582,120]
[406920229,1772275851168,-173.175025,0.00042582,120]
[406920231,1772275851178,-350.839574,0.00042582,120]
[406920232,1772275851187,-151.0,0.00042582,120]
[406920234,1772275851197,-151.0,0.00042582,120]
[406920236,1772275851206,-350.839574,0.00042582,120]
[406920238,1772275851215,-151.0,0.00042582,120]
[406920240,1772275851224,-160.0,0.000426,120]
[406920242,1772275851233,-175.96630577,0.0004274,120]
[406920244,1772275851242,-158.82,0.000428,14]
[406920246,1772275851252,-629.32,0.000428,14]
[406920248,1772275851262,-280.0,0.000428,60]
[406920250,1772275851271,-1000.0,0.00042853,30]
[406920252,1772275851280,-155.0,0.000431,120]
[406920254,1772275851290,-1000.0,0.00043127,30]
[406920256,1772275851298,-200.0,0.00043233,120]
[406920258,1772275851307,-200.0,0.00043233,120]
[406920260,1772275851317,-300.92,0.00043233,120]
[406920262,1772275851326,-9030.08416486,0.00043381,15]
[406920264,1772275851335,-1000.0,0.00043401,30]
[406920266,1772275851345,-767.34,0.00043462,30]
[406920268,1772275851354,-500.0,0.00043463,120]
[406920270,1772275851362,-789.19,0.00043463,30]
[406920271,1772275851371,-25000.0,0.00043472,15]
[406920273,1772275851381,-25000.0,0.00043481,15]
[406920275,1772275851390,-25000.0,0.0004349,15]
[406920277,1772275851400,-25000.0,0.0004349,15]
[406920280,1772275851410,-25000.0,0.0004349,15]
[406920282,1772275851419,-159.727378,0.0004349,120]
[406920284,1772275851429,-151.0,0.0004349,120]
[406920286,1772275851438,-241.594898,0.0004349,7]
[406920288,1772275851447,-241.594898,0.0004349,7]
[406920290,1772275851456,-241.594898,0.0004349,7]
[406920291,1772275851466,-151.0,0.0004349,120]
[406920293,1772275851475,-151.0,0.0004349,60]
[406920295,1772275851485,-241.594898,0.0004349,7]
[406920297,1772275851495,-215.252612,0.0004349,120]
[406920300,1772275851504,-544.728675,0.0004349,15]
[406920302,1772275851516,-151.0,0.0004349,120]
[406920303,1772275851526,-544.728675,0.0004349,15]
[406920305,1772275851535,-151.0,0.0004349,120]
[406920307,1772275851544,-544.728675,0.0004349,15]
[406920309,1772275851553,-544.728675,0.0004349,15]
[406920311,1772275851563,-151.0,0.0004349,30]
[406920313,1772275851572,-151.0,0.0004349,120]
[406920315,1772275851582,-151.0,0.0004349,120]
[406920317,1772275851591,-223.876519,0.0004349,120]
[406920319,1772275851600,-1000.0,0.00043675,30]
[406920321,1772275851609,-3858.89400622,0.00043695,10]
[406920323,1772275851618,-199.69,0.000438,120]
[406920325,1772275851627,-450.0,0.000438,30]
[406920327,1772275851636,-1735.0,0.000438,2]
[406920329,1772275851646,-151.0,0.00043836,120]
[406920331,1772275851655,-151.0,0.00043836,120]
[406920333,1772275851663,-151.0,0.00043836,120]
[406920335,1772275851672,-151.0,0.00043836,120]
[406920337,1772275851682,-931.173686,0.00043836,120]
[406920339,1772275851690,-931.173686,0.00043836,120]
[406920341,1772275851701,-931.173686,0.00043836,120]
[406920343,1772275851715,-931.173686,0.00043836,120]
[406920345,1772275851724,-931.173686,0.00043836,120]
[406920347,1772275851733,-931.173686,0.00043836,120]
[406920349,1772275851742,-931.173686,0.00043836,120]
[406920351,1772275851754,-931.173686,0.00043836,120]
[406920353,1772275851763,-151.0,0.00043836,120]
[406920355,1772275851772,-151.0,0.00043836,120]
[406920357,1772275851783,-159.722962,0.00043836,120]
[406920359,1772275851792,-20000.0,0.00043836,120]
[406920361,1772275851801,-16655.52462085,0.00043849,15]
[406920363,1772275851810,-500.0,0.00043898,120]
[406920365,1772275851819,-500.0,0.00043898,2]
[406920367,1772275851829,-767.34,0.00043898,30]
[406920369,1772275851838,-767.34,0.00043898,30]
[406920371,1772275851847,-767.34,0.00043898,30]
[406920373,1772275851859,-767.34,0.00043898,30]
[406920375,1772275851870,-767.41,0.00043898,30]
[406920377,1772275851880,-122709.0,0.00043899,60]
[406920379,1772275851888,-151.0,0.00043949,120]
[406920381,1772275851897,-151.0,0.00043949,120]
[406920383,1772275851907,-151.0,0.00043949,120]
[406920385,1772275851916,-151.0,0.00043949,120]
[406920387,1772275851924,-151.0,0.00043949,120]
[406920389,1772275851933,-152.029792,0.00043949,120]
[406920390,1772275851942,-183.506882,0.00043949,120]
[406920392,1772275851950,-1000.0,0.00043949,30]
[406920394,1772275851959,-6119.2478592,0.00044,4]
[406920396,1772275851969,-1000.0,0.00044223,30]
[406920398,1772275851978,-1000.0,0.00044497,30]
[406920401,1772275851987,-1000.0,0.00044771,30]
[406920402,1772275851996,-1307.89,0.00045,120]
[406920404,1772275852006,-1288.35793697,0.00045,120]
[406920406,1772275852015,-232.63342796,0.00045,120]
[406920408,1772275852025,-1000.0,0.00045045,30]
[406920410,1772275852034,-122709.0,0.00045216,60]
[406920412,1772275852043,-151.0,0.00045216,120]
[406920414,1772275852052,-151.0,0.00045216,120]
[406920416,1772275852061,-173.236622,0.00045216,120]
[406920418,1772275852071,-151.0,0.00045216,120]
[406920420,1772275852081,-151.0,0.00045216,120]
[406920422,1772275852090,-175.102451,0.00045216,120]
[406920424,1772275852101,-171.357985,0.00045216,120]
[406920426,1772275852111,-151.0,0.00045216,120]
[406920428,1772275852121,-151.0,0.00045216,120]
[406920430,1772275852131,-151.0,0.00045216,120]
[406920432,1772275852140,-152.27667,0.00045216,120]
[406920434,1772275852150,-151.0,0.00045216,120]
[406920436,1772275852160,-151.0,0.00045216,120]
[406920438,1772275852170,-151.000004,0.00045216,120]
[406920440,1772275852180,-151.0,0.00045216,2]
[406920442,1772275852189,-151.0,0.00045216,2]
[406920444,1772275852198,-151.0,0.00045216,120]
[406920446,1772275852208,-173.828848,0.00045216,120]
[406920448,1772275852218,-173.828848,0.00045216,120]
[406920450,1772275852227,-173.828848,0.00045216,120]
[406920452,1772275852237,-173.828848,0.00045216,120]
[406920454,1772275852246,-151.0,0.00045216,120]
[406920456,1772275852255,-151.0,0.00045216,120]
[406920458,1772275852264,-165.910097,0.00045216,120]
[406920460,1772275852274,-227.829058,0.00045216,120]
[406920462,1772275852283,-227.829058,0.00045216,120]
[406920464,1772275852292,-227.829058,0.00045216,120]
[406920466,1772275852302,-227.829058,0.00045216,120]
[406920468,1772275852311,-160.0,0.000453,120]
[406920470,1772275852321,-1644.0,0.00045319,30]
[406920472,1772275852330,-339.14669952,0.00045338,5]
[406920474,1772275852339,-1857.4487911,0.00045379,17]
[406920476,1772275852349,-150.0,0.00045448,14]
[406920478,1772275852358,-150.0,0.00045457,14]
[406920480,1772275852368,-150.0,0.00045503,14]
[406920482,1772275852377,-150.0,0.00045513,14]
[406920484,1772275852387,-150.0,0.00045601,14]
[406920486,1772275852397,-150.0,0.00045635,14]
[406920488,1772275852406,-150.0,0.00045694,14]
[406920490,1772275852415,-150.0,0.00045722,14]
[406920492,1772275852424,-150.0,0.00045729,14]
[406920494,1772275852433,-150.0,0.00045763,14]
[406920496,1772275852442,-150.0,0.00045814,14]
[406920498,1772275852451,-150.0,0.00045832,14]
[406920500,1772275852461,-150.0,0.00045878,14]
[406920502,1772275852470,-5237.39515421,0.0004588,120]
[406920504,1772275852479,-150.0,0.00045887,14]
[406920506,1772275852488,-1157.34,0.000459,30]
[406920508,1772275852497,-983.8732,0.00045915,2]
[406920510,1772275852507,-150.0,0.00045931,14]
[406920512,1772275852517,-150.0,0.00045954,14]
[406920514,1772275852526,-425.92144494,0.00046,120]
[406920516,1772275852536,-202.5753493,0.00046,120]
[406920518,1772275852544,-468.51,0.00046,120]
[406920520,1772275852553,-468.52,0.00046,120]
[406920522,1772275852563,-150.0,0.00046048,14]
[406920524,1772275852572,-217.02842139,0.00046139,14]
[406920526,1772275852582,-1033.13865863,0.0004614,14]
[406920528,1772275852592,-150.0,0.00046153,14]
[406920530,1772275852601,-150.0,0.00046173,14]
[406920532,1772275852611,-152.0,0.00046182,4]
[406920534,1772275852620,-155.0,0.000462,120]
[406920536,1772275852629,-150.0,0.00046207,14]
[406920538,1772275852639,-150.0,0.00046217,14]
[406920540,1772275852648,-150.0,0.00046223,14]
[406920542,1772275852657,-150.0,0.00046276,14]
[406920544,1772275852667,-381.03771736,0.00046279,120]
[406920546,1772275852677,-150.0,0.00046288,14]
[406920548,1772275852686,-150.0,0.0004629,14]
[406920550,1772275852695,-500.0,0.00046353,120]
[406920552,1772275852708,-500.0,0.00046353,120]
[406920554,1772275852719,-500.0,0.00046353,120]
[406920556,1772275852728,-500.0,0.00046353,120]
[406920558,1772275852739,-648.3262986,0.00046353,120]
[406920560,1772275852748,-500.0,0.00046353,2]
[406920562,1772275852758,-500.0,0.00046353,2]
[406920564,1772275852769,-457.04,0.00046353,2]
[406920566,1772275852778,-30455.93491122,0.00046354,30]
[406920568,1772275852787,-151.0,0.00046354,120]
[406920570,1772275852796,-172.727013,0.00046354,120]
[406920572,1772275852805,-151.0,0.00046354,120]
[406920574,1772275852815,-151.0,0.00046354,14]
[406920576,1772275852824,-152.403699,0.00046354,120]
[406920578,1772275852833,-165.732558,0.00046354,120]
[406920580,1772275852842,-151.0,0.00046354,120]
[406920582,1772275852851,-151.0,0.00046354,120]
[406920584,1772275852860,-151.0,0.00046354,120]
[406920586,1772275852869,-151.0,0.00046354,120]
[406920588,1772275852877,-151.0,0.00046354,120]
[406920590,1772275852886,-159.676624,0.00046354,120]
[406920592,1772275852895,-151.000026,0.00046354,120]
[406920594,1772275852904,-157.76245,0.00046354,120]
[406920607,1772275853004,-883.51710443,0.00046369,7]
[406920609,1772275853025,-151.0,0.00046375,120]
[406920611,1772275853034,-176.157289,0.00046375,120]
[406920613,1772275853043,-151.0,0.00046375,120]
[406920615,1772275853052,-151.0,0.00046375,30]
[406920617,1772275853061,-162.79456,0.00046375,120]
[406920619,1772275853071,-152.468542,0.00046375,120]
[406920621,1772275853080,-166.23414,0.00046375,120]
[406920623,1772275853089,-151.0,0.00046375,120]
[406920625,1772275853098,-151.0,0.00046375,120]
[406920627,1772275853108,-171.103435,0.00046375,120]
[406920629,1772275853117,-151.0,0.00046375,120]
[406920631,1772275853126,-157.889438,0.00046375,120]
[406920633,1772275853136,-194.685911,0.00046375,120]
[406920635,1772275853145,-151.0,0.00046375,120]
[406920637,1772275853155,-151.0,0.00046375,120]
[406920639,1772275853163,-1153.6319,0.00046378,2]
[406920641,1772275853172,-384.5439,0.00046378,2]
[406920643,1772275853182,-2648.53561472,0.00046379,2]
[406920645,1772275853191,-725.07860446,0.00046379,2]
[406920647,1772275853200,-250.0,0.00046379,120]
[406920649,1772275853209,-250.0,0.00046379,120]
[406920651,1772275853218,-250.0,0.00046379,120]
[406920653,1772275853228,-250.0,0.00046379,120]
[406920655,1772275853237,-250.0,0.00046379,120]
[406920656,1772275853247,-250.0,0.00046379,120]
[406920657,1772275853256,-250.0,0.00046379,120]
[406920658,1772275853265,-250.0,0.00046379,120]
[406920659,1772275853275,-500.0,0.00046379,120]
[406920660,1772275853284,-5100.0,0.00046379,33]
[406920661,1772275853294,-5100.0,0.00046379,35]
[406920662,1772275853304,-5100.0,0.00046379,37]
[406920663,1772275853313,-3009.10844919,0.00046379,120]
[406920664,1772275853322,-425.92144494,0.00046379,120]
[406920665,1772275853332,-202.5753493,0.00046379,120]
[406920666,1772275853341,-481710.42526525,0.00046379,30]
[406920667,1772275853350,-263.48,0.00046379,120]
[406920668,1772275853360,-18821.61028032,0.00046379,120]
[406920669,1772275853369,-600915.0,0.00046379,60]
[406920670,1772275853380,-153.601207,0.00046379,120]
[406920671,1772275853391,-241.594898,0.00046379,7]
[406920672,1772275853400,-241.594898,0.00046379,7]
[406920673,1772275853409,-241.594898,0.00046379,7]
[406920674,1772275853419,-151.0,0.00046379,120]
[406920675,1772275853429,-151.0,0.00046379,60]
[406920676,1772275853439,-241.594898,0.00046379,7]
[406920677,1772275853449,-931.173686,0.00046379,120]
[406920678,1772275853458,-931.173686,0.00046379,120]
[406920680,1772275853468,-544.728675,0.00046379,15]
[406920681,1772275853478,-189.515313,0.00046379,120]
[406920683,1772275853487,-931.173686,0.00046379,120]
[406920685,1772275853496,-544.728675,0.00046379,15]
[406920687,1772275853506,-151.0,0.00046379,120]
[406920689,1772275853515,-931.173686,0.00046379,120]
[406920691,1772275853524,-544.728675,0.00046379,15]
[406920693,1772275853534,-544.728675,0.00046379,15]
[406920694,1772275853544,-151.0,0.00046379,30]
[406920697,1772275853554,-151.0,0.00046379,120]
[406920698,1772275853563,-151.0,0.00046379,120]
[406920700,1772275853572,-151.0,0.00046379,120]
[406920702,1772275853581,-151.0,0.00046379,120]
[406920704,1772275853590,-151.0,0.00046379,120]
[406920706,1772275853599,-151.0,0.00046379,120]
[406920708,1772275853610,-151.0,0.00046379,120]
[406920710,1772275853620,-151.0,0.00046379,120]
[406920712,1772275853629,-151.0,0.00046379,120]
[406920714,1772275853642,-151.0,0.00046379,120]
[406920716,1772275853651,-151.0,0.00046379,120]
[406920718,1772275853660,-151.0,0.00046379,120]
[406920720,1772275853669,-277.554105,0.00046379,120]
[406920722,1772275853678,-244.644846,0.00046379,120]
[406920724,1772275853687,-277.554105,0.00046379,120]
[406920726,1772275853697,-510.078649,0.00046379,14]
[406920729,1772275853710,-205.27477,0.00046379,120]
[406920730,1772275853719,-277.554105,0.00046379,120]
[406920732,1772275853729,-205.27477,0.00046379,120]
[406920734,1772275853739,-510.078649,0.00046379,14]
[406920736,1772275853750,-277.554105,0.00046379,120]
[406920738,1772275853759,-205.27477,0.00046379,120]